[Event "World Junior U20 Open 2018"]
[Site "Gebze"]
[Date "2018.09.07"]
[Round "3.70"]
[White "Vanczak, Tamas"]
[Black "Ozsakallioglu, Okan"]
[Result "1/2-1/2"]
[ECO "B45"]
[WhiteElo "2276"]
[BlackElo "1955"]
[Annotator "NA"]
[PlyCount "75"]
[EventDate "2018.09.05"]
[EventType "swiss"]
[EventCountry "TUR"]
[SourceTitle "playchess.com"]
[Source "ChessBase"]
[SourceQuality "1"]
[TimeControl "40/5400+30:1800+30"]

1. e4 {[%emt 0:00:30]} c5 {[%emt 0:00:30]} 2. Nf3 {[%emt 0:00:00]} e6 {[%emt 0:00:00]} 3. d4 {[%emt 0:00:00]} cxd4 {[%emt 0:00:00]} 4. Nxd4 {[%emt 0:00:30]} Nc6 {[%emt 0:00:00]} 5. Nc3 {[%emt 0:00:30]} Nf6 {[%emt 0:01:00]} 6. Nxc6 {[%emt 0:02:30]} bxc6 {[%emt 0:01:30]} 7. e5 {[%emt 0:01:30]} Nd5 {[%emt 0:00:30]} 8. Ne4 {[%emt 0:00:00]} Qc7 {[%emt 0:00:00]} 9. f4 {[%emt 0:01:00]} Qa5+ {[%emt 0:00:00]} 10. c3 {[%emt 0:03:30]} Be7 {[%emt 0:03:30]} 11. Bd3 {[%emt 0:01:30] B45: Sicilian Four Knights} f5 {[%emt 0:00:30]} 12. exf6 {[%emt 0:00:30]} Nxf6 {[%emt 0:01:30]} 13. O-O {[%emt 0:02:30]} Ba6 {[%emt 0:03:30]} 14. Nxf6+ {[%emt 0:07:30]} Bxf6 {[%emt 0:00:00]} 15. Bxa6 {[%emt 0:03:30]} Qxa6 {[%emt 0:00:00] [#]} 16. f5 $146 {[%emt 0:01:30]} ({Predecessor:} 16. Be3 Qb5 17. Rf2 d5 18. Qg4 Kf7 {1-0 (41) Grischuk,A (2763)-Andreikin,D (2715) Moscow 2012}) 16... O-O {[%emt 0:04:30]} 17. fxe6 {[%emt 0:13:30]} dxe6 {[%emt 0:02:30]} 18. Be3 {[%emt 0:00:30]} Qb5 {[%emt 0:01:30]} 19. Qc2 {[%emt 0:05:30]} Bg5 {[%emt 0:01:30]} 20. Bxg5 {[%emt 0:02:30]} Qxg5 {[%emt 0:00:30]} 21. Qe2 {[%emt 0:00:30]} Qd5 {[%emt 0:01:30]} 22. c4 {[%emt 0:06:30]} Qc5+ {[%emt 0:00:30]} 23. Kh1 {[%emt 0:00:30]} e5 {[%emt 0:00:30]} 24. h3 {[%emt 0:03:30]} Rxf1+ {[%emt 0:04:30]} 25. Rxf1 {[%emt 0:00:30]} Rf8 {[%emt 0:00:30]} 26. Rd1 {[%emt 0:02:30]} h6 {[%emt 0:02:30]} 27. b3 {[%emt 0:02:30]} Rf6 {[%emt 0:07:30]} 28. Qe4 {[%emt 0:06:30]} Rd6 {[%emt 0:02:30]} 29. Rf1 {[%emt 0:06:30]} Qd4 $11 {[%emt 0:05:30]} 30. Qxd4 {[%emt 0:08:25]} exd4 {[%emt 0:00:30]} 31. Kg1 {[%emt 0:00:19]} c5 {[%emt 0:00:30]} 32. Rf5 {[%emt 0:01:05]} Ra6 {[%emt 0:08:30]} 33. Rxc5 {[%emt 0:08:32]} Rxa2 {[%emt 0:00:00]} 34. Rd5 {[%emt 0:00:35]} Rb2 {[%emt 0:00:00]} 35. Rxd4 {[%emt 0:01:09]} Rxb3 {[%emt 0:00:00]} 36. Rd8+ {[%emt 0:03:58]} Kh7 {[%emt 0:01:00]} 37. Kf2 {[%emt 0:00:07]} a5 {[%emt 0:00:30]} 38. Ra8 {[%emt 0:03:24]} 1/2-1/2

[Event "World Junior U20 Open 2018"]
[Site "Gebze"]
[Date "2018.09.07"]
[Round "3.71"]
[White "Dionizio, Andre Filipe Nascim"]
[Black "Kilic, Efe Mert"]
[Result "0-1"]
[ECO "C62"]
[WhiteElo "2010"]
[BlackElo "2269"]
[Annotator "NA"]
[PlyCount "116"]
[EventDate "2018.09.05"]
[EventType "swiss"]
[EventCountry "TUR"]
[SourceTitle "playchess.com"]
[Source "ChessBase"]
[SourceQuality "1"]
[TimeControl "40/5400+30:1800+30"]

1. e4 {[%emt 0:00:30]} e5 {[%emt 0:02:30]} 2. Nf3 {[%emt 0:00:00]} Nc6 {[%emt 0:00:30]} 3. Bb5 {[%emt 0:00:00]} Nge7 {[%emt 0:00:00]} 4. Nc3 {[%emt 0:00:30]} d6 {[%emt 0:00:00]} 5. d4 {[%emt 0:03:30]} exd4 {[%emt 0:00:00]} 6. Nxd4 {[%emt 0:01:30]} Bd7 {[%emt 0:00:00]} 7. Nxc6 {[%emt 0:09:30] C62: Ruy Lopez: Steinitz Defence} bxc6 $146 {[%emt 0:00:30]} ({Predecessor:} 7... Bxc6 8. Bc4 Ng6 9. Qd4 Ne5 10. Bb3 Qf6 11. Be3 Ng4 12. Qd2 Nxe3 13. fxe3 Qg6 14. O-O f6 {1-0 (25) Olszewski,M (2556)-Kubien,J (2218) Poronin 2013}) 8. Bc4 {[%emt 0:00:30]} Ng6 {[%emt 0:00:30]} 9. Be3 {[%emt 0:09:30]} Be7 {[%emt 0:00:30]} 10. Qd2 {[%emt 0:07:30]} Ne5 {[%emt 0:01:30]} 11. Be2 {[%emt 0:00:30]} O-O {[%emt 0:01:30]} 12. O-O {[%emt 0:12:30]} Be6 {[%emt 0:00:30]} 13. f4 {[%emt 0:03:30]} Nc4 {[%emt 0:00:00]} 14. Bxc4 {[%emt 0:04:30]} Bxc4 {[%emt 0:00:00]} 15. Rfe1 {[%emt 0:00:30]} Bh4 {[%emt 0:10:30]} 16. g3 {[%emt 0:06:30]} Bf6 {[%emt 0:00:30]} 17. Rad1 {[%emt 0:01:30]} Re8 {[%emt 0:00:30]} 18. Bd4 {[%emt 0:00:30]} Be6 {[%emt 0:05:30]} 19. Bxf6 {[%emt 0:18:06]} Qxf6 {[%emt 0:00:30]} 20. Qd4 $11 {[%emt 0:00:09]} Qh6 {[%emt 0:04:30]} 21. f5 {[%emt 0:06:55]} Bd7 {[%emt 0:01:30]} 22. Rf1 {[%emt 0:04:35]} Re5 {[%emt 0:11:30]} 23. Rf4 {[%emt 0:01:46]} Qf6 {[%emt 0:04:30]} 24. Qf2 {[%emt 0:00:15]} Qd8 {[%emt 0:00:30]} 25. Qf3 {[%emt 0:01:11]} Qb8 {[%emt 0:03:30]} 26. b3 {[%emt 0:00:14]} Qb4 {[%emt 0:00:00]} 27. h4 {[%emt 0:01:28]} Rae8 {[%emt 0:00:00]} 28. Rd3 {[%emt 0:02:14]} Bc8 {[%emt 0:00:00]} 29. Qf2 {[%emt 0:02:31]} Qa5 {[%emt 0:00:00]} 30. Qd2 {[%emt 0:00:48]} f6 {[%emt 0:00:30]} 31. Kh2 {[%emt 0:00:30]} Ba6 {[%emt 0:00:30]} 32. Rd4 {[%emt 0:00:02]} Bb7 {[%emt 0:03:30]} 33. Ra4 {[%emt 0:00:43]} Qb6 {[%emt 0:00:30]} 34. Qf2 {[%emt 0:00:36]} c5 {[%emt 0:02:30]} 35. b4 {[%emt 0:00:41]} cxb4 {[%emt 0:02:30]} 36. Qxb6 {[%emt 0:00:30]} axb6 {[%emt 0:00:30]} 37. Rxb4 {[%emt 0:00:00]} Rc5 {[%emt 0:00:30]} 38. Rb3 {[%emt 0:00:52]} Rc4 {[%emt 0:00:30]} 39. Kg2 {[%emt 0:01:15]} Re5 {[%emt 0:03:30]} 40. Kf2 {[%emt 0:00:57]} Rec5 {[%emt 0:00:00]} 41. Rf3 {[%emt 0:02:12]} Bxe4 {[%emt 0:01:00]} 42. Nxe4 {[%emt 0:00:00]} Rxe4 {[%emt 0:00:00]} 43. c3 {[%emt 0:03:00]} Ra4 {[%emt 0:01:00]} 44. a3 {[%emt 0:02:30]} Rca5 {[%emt 0:00:30]} 45. Ke3 {[%emt 0:00:30]} Rxa3 {[%emt 0:00:30]} 46. Rxa3 {[%emt 0:00:30]} Rxa3 {[%emt 0:00:00]} 47. Kd4 {[%emt 0:00:30]} Ra5 {[%emt 0:00:00]} 48. c4 {[%emt 0:00:30]} h5 {[%emt 0:00:00]} 49. Ke4 {[%emt 0:00:30]} Re5+ {[%emt 0:00:00]} 50. Kd4 {[%emt 0:00:30]} Kf7 {[%emt 0:00:30]} 51. Ra3 {[%emt 0:00:30]} Rxf5 52. Ra7 Rc5 53. Rb7 Ke6 54. Rb8 Kf5 55. Rg8 g5 56. hxg5 fxg5 57. Re8 Kg4 58. Re3 Rf5 0-1

[Event "World Junior U20 Open 2018"]
[Site "Gebze"]
[Date "2018.09.07"]
[Round "3.72"]
[White "Kilic, Gokturk Kagan"]
[Black "Pigeat, Alexandre"]
[Result "1/2-1/2"]
[ECO "C16"]
[WhiteElo "1910"]
[BlackElo "2347"]
[Annotator "NA"]
[PlyCount "127"]
[EventDate "2018.09.05"]
[EventType "swiss"]
[EventCountry "TUR"]
[SourceTitle "playchess.com"]
[Source "ChessBase"]
[SourceQuality "1"]
[TimeControl "40/5400+30:1800+30"]

1. e4 {[%emt 0:00:30]} e6 {[%emt 0:00:30]} 2. d4 {[%emt 0:00:30]} d5 {[%emt 0:00:00]} 3. Nc3 {[%emt 0:01:30]} Bb4 {[%emt 0:00:00]} 4. e5 {[%emt 0:01:30]} Ne7 {[%emt 0:00:30]} 5. a3 {[%emt 0:01:30]} Bxc3+ {[%emt 0:00:30]} 6. bxc3 {[%emt 0:00:30]} b6 {[%emt 0:00:00]} 7. Qg4 {[%emt 0:01:30]} Ng6 {[%emt 0:00:00]} 8. h4 {[%emt 0:02:30]} h5 {[%emt 0:00:30]} 9. Qd1 {[%emt 0:00:30]} Ba6 {[%emt 0:01:30]} 10. Bxa6 {[%emt 0:00:30]} Nxa6 {[%emt 0:00:30]} 11. Bg5 {[%emt 0:00:30]} Qd7 {[%emt 0:00:30]} 12. Ne2 {[%emt 0:06:30] C16: French: 3 Nc3 Bb4 4 e5: Lines without ...c5} Ne7 {[%emt 0:02:30]} 13. Qd3 $146 {[%emt 0:18:30]} ({Predecessor:} 13. Nf4 g6 14. Bf6 Rg8 15. Qd3 Qa4 16. O-O Rc8 17. Rfd1 c6 18. f3 Kd7 19. g4 hxg4 20. fxg4 {1-0 (83) Bosiocic,M (2602)-Movsesian,S (2679) Moscow 2017}) 13... Nb8 {[%emt 0:02:30]} 14. Qf3 {[%emt 0:00:30]} Nbc6 {[%emt 0:01:30]} 15. Nf4 {[%emt 0:05:30]} g6 {[%emt 0:01:30]} 16. Bf6 {[%emt 0:00:30]} Rg8 {[%emt 0:00:30]} 17. Nh3 {[%emt 0:01:30]} Nf5 {[%emt 0:02:30]} 18. Ng5 {[%emt 0:02:30]} Na5 {[%emt 0:07:30]} 19. Qd3 {[%emt 0:26:30]} Qa4 {[%emt 0:01:30]} 20. g4 {[%emt 0:06:30]} hxg4 {[%emt 0:00:30]} 21. h5 {[%emt 0:00:30]} gxh5 {[%emt 0:04:30]} 22. Rxh5 {[%emt 0:00:45]} Qc4 {[%emt 0:00:30]} 23. Rh7 {[%emt 0:04:28]} Rf8 {[%emt 0:01:30]} 24. Ke2 {[%emt 0:01:29]} c5 {[%emt 0:01:30]} 25. Qxc4 {[%emt 0:03:06]} Nxc4 {[%emt 0:00:30]} 26. dxc5 {[%emt 0:02:57]} bxc5 {[%emt 0:01:30]} 27. Rah1 {[%emt 0:03:18]} g3 {[%emt 0:08:30]} 28. Rg1 {[%emt 0:06:19]} gxf2 {[%emt 0:00:30]} 29. Kxf2 {[%emt 0:00:07]} Nb6 {[%emt 0:02:30]} 30. Ke2 {[%emt 0:00:49]} Nd7 {[%emt 0:02:30]} 31. Kd2 {[%emt 0:00:46]} Rb8 {[%emt 0:00:30]} 32. Rgh1 {[%emt 0:00:19]} Nxf6 {[%emt 0:05:30]} 33. exf6 {[%emt 0:00:05]} Nd6 {[%emt 0:00:30]} 34. Rg7 {[%emt 0:01:28]} e5 {[%emt 0:08:30]} 35. Rhh7 {[%emt 0:00:26]} Rb7 {[%emt 0:14:30]} 36. Ne6 {[%emt 0:00:14]} fxe6 {[%emt 0:00:30]} 37. Rxb7 {[%emt 0:00:30]} Nxb7 {[%emt 0:00:30]} 38. Re7+ {[%emt 0:00:04]} Kd8 {[%emt 0:00:00]} 39. Rxb7 {[%emt 0:00:07]} Rxf6 {[%emt 0:00:00]} 40. Rxa7 {[%emt 0:00:00]} Rf2+ {[%emt 0:00:00]} 41. Kd1 {[%emt 0:00:43]} Rf3 {[%emt 0:06:00]} 42. Kd2 {[%emt 0:13:52]} d4 {[%emt 0:00:30]} 43. cxd4 {[%emt 0:02:01]} exd4 {[%emt 0:00:30]} 44. a4 {[%emt 0:03:33]} e5 {[%emt 0:04:30]} 45. Rh7 {[%emt 0:05:06]} e4 {[%emt 0:00:30]} 46. Rh5 {[%emt 0:01:45]} Rc3 {[%emt 0:00:30]} 47. a5 {[%emt 0:02:07]} Kc7 {[%emt 0:00:30]} 48. Rh6 $19 {[%emt 0:01:30]} c4 {[%emt 0:01:30]} 49. Re6 {[%emt 0:01:10]} e3+ {[%emt 0:00:30]} 50. Kd1 {[%emt 0:00:06]} Kb7 {[%emt 0:04:30]} 51. Rb6+ {[%emt 0:01:29]} Kc7 {[%emt 0:18:30]} 52. Re6 {[%emt 0:00:12]} Ra3 {[%emt 0:01:30]} 53. Re4 {[%emt 0:00:20]} Kc6 {[%emt 0:00:00]} 54. Rxd4 {[%emt 0:02:14]} Kc5 {[%emt 0:00:00]} 55. Re4 {[%emt 0:00:12]} Kb4 {[%emt 0:03:30]} 56. a6 {[%emt 0:01:07]} Rxa6 {[%emt 0:07:23]} 57. Rxe3 {[%emt 0:00:30]} Ra1+ {[%emt 0:00:00]} 58. Kd2 {[%emt 0:00:05]} Rh1 {[%emt 0:00:00]} 59. Re8 {[%emt 0:00:58]} Rh2+ {[%emt 0:00:32]} 60. Kc1 {[%emt 0:00:31]} Kc3 {[%emt 0:01:30]} 61. Re3+ {[%emt 0:00:07]} Kd4 {[%emt 0:00:17]} 62. Re8 {[%emt 0:00:45]} Rh3 {[%emt 0:00:30]} 63. Kb2 {[%emt 0:00:46]} Rh7 {[%emt 0:00:53]} 64. Rd8+ {[%emt 0:00:08]} 1/2-1/2

[Event "World Junior U20 Open 2018"]
[Site "Gebze"]
[Date "2018.09.07"]
[Round "3.73"]
[White "Wadsworth, Matthew J"]
[Black "Caglar, Ahmet Ata"]
[Result "1-0"]
[ECO "A29"]
[WhiteElo "2351"]
[BlackElo "2071"]
[Annotator "NA"]
[PlyCount "67"]
[EventDate "2018.09.05"]
[EventType "swiss"]
[EventCountry "TUR"]
[SourceTitle "playchess.com"]
[Source "ChessBase"]
[SourceQuality "1"]
[TimeControl "40/5400+30:1800+30"]

1. g3 {[%emt 0:00:30]} e5 {[%emt 0:00:30]} 2. c4 {[%emt 0:00:00]} Nf6 {[%emt 0:00:30]} 3. Bg2 {[%emt 0:00:00]} d5 {[%emt 0:00:00]} 4. cxd5 {[%emt 0:00:30]} Nxd5 {[%emt 0:00:00]} 5. Nc3 {[%emt 0:00:00]} Nb6 {[%emt 0:00:30]} 6. Nf3 {[%emt 0:00:00]} Nc6 {[%emt 0:00:00]} 7. O-O {[%emt 0:00:30]} Be7 {[%emt 0:00:00]} 8. a3 {[%emt 0:00:00]} O-O {[%emt 0:00:30]} 9. b4 {[%emt 0:01:00]} Be6 {[%emt 0:01:30]} 10. Rb1 {[%emt 0:00:00]} f6 {[%emt 0:02:30]} 11. d3 {[%emt 0:00:00]} Qd7 {[%emt 0:07:30]} 12. Ne4 {[%emt 0:03:30]} Nd5 {[%emt 0:07:30]} 13. Bb2 {[%emt 0:03:30]} a5 {[%emt 0:01:30]} 14. Nc5 {[%emt 0:02:30]} Bxc5 {[%emt 0:00:30]} 15. bxc5 {[%emt 0:00:00]} a4 {[%emt 0:02:30]} 16. Ba1 $11 {[%emt 0:14:00]} Na5 {[%emt 0:08:30]} 17. e4 {[%emt 0:00:30]} Ne7 {[%emt 0:00:30]} 18. d4 {[%emt 0:00:30]} exd4 {[%emt 0:10:30]} 19. Nxd4 {[%emt 0:01:30]} Bc4 {[%emt 0:04:30]} 20. Re1 {[%emt 0:03:30]} Nb3 {[%emt 0:04:30]} 21. Qc2 {[%emt 0:06:30]} Bf7 {[%emt 0:01:30]} 22. Red1 {[%emt 0:06:30]} Rfd8 {[%emt 0:03:30]} 23. e5 {[%emt 0:10:30]} fxe5 {[%emt 0:03:30]} 24. c6 {[%emt 0:00:00]} Qe8 {[%emt 0:15:30]} 25. cxb7 {[%emt 0:02:00]} Rab8 {[%emt 0:06:56]} 26. Nxb3 {[%emt 0:03:30]} axb3 {[%emt 0:00:10]} 27. Qxc7 {[%emt 0:01:30]} Nd5 {[%emt 0:00:31]} 28. Qxe5 {[%emt 0:06:30]} Qxe5 {[%emt 0:02:14]} 29. Bxe5 {[%emt 0:00:30]} Rxb7 {[%emt 0:00:00]} 30. Rd3 {[%emt 0:00:30]} Rbd7 {[%emt 0:05:16]} 31. Rbxb3 {[%emt 0:01:30]} Nf6 {[%emt 0:00:17]} 32. Rxd7 {[%emt 0:01:30]} Rxd7 {[%emt 0:01:16]} 33. Rb8+ {[%emt 0:01:30]} Ne8 {[%emt 0:00:08]} 34. Bc6 {[%emt 0:02:30]} 1-0

[Event "World Junior U20 Open 2018"]
[Site "Gebze"]
[Date "2018.09.07"]
[Round "3.74"]
[White "Cansun, Can Alp"]
[Black "Hollan, Martin"]
[Result "1/2-1/2"]
[ECO "B32"]
[WhiteElo "2110"]
[BlackElo "2336"]
[Annotator "NA"]
[PlyCount "160"]
[EventDate "2018.09.05"]
[EventType "swiss"]
[EventCountry "TUR"]
[SourceTitle "playchess.com"]
[Source "ChessBase"]
[SourceQuality "1"]
[TimeControl "40/5400+30:1800+30"]

1. e4 {[%emt 0:00:30]} c5 {[%emt 0:00:30]} 2. Nf3 {[%emt 0:00:00]} Nc6 {[%emt 0:00:30]} 3. d4 {[%emt 0:00:00]} cxd4 {[%emt 0:00:30]} 4. Nxd4 {[%emt 0:00:30]} e5 {[%emt 0:00:30]} 5. Nb5 {[%emt 0:00:30]} a6 {[%emt 0:00:30]} 6. Nd6+ {[%emt 0:00:30]} Bxd6 {[%emt 0:00:30]} 7. Qxd6 {[%emt 0:00:30]} Qe7 {[%emt 0:00:30]} 8. Qc7 {[%emt 0:00:30] B32: Sicilian: Löwenthal and Kalashnikov Variations} (8. Qd1 Nf6 9. Nc3 d6 10. Bg5 Be6 11. Nd5 Bxd5 12. exd5 Nb8 13. Qf3 Nbd7 14. O-O-O h6 15. Be3 h5 16. h3 O-O-O 17. Ba7 Nc5 {1-0 (80) Yu,Y (2759)-Li,C (2725) Ningbo 2018}) 8... d5 {[%emt 0:00:30]} 9. Qxe7+ {[%emt 0:00:30]} Ngxe7 {[%emt 0:00:30]} 10. exd5 {[%emt 0:04:30]} Nxd5 {[%emt 0:05:30]} 11. c3 {[%emt 0:00:30]} O-O {[%emt 0:00:30]} 12. Na3 $146 {[%emt 0:13:30]} ({Predecessor:} 12. Nd2 Bf5 13. Nc4 Rad8 14. Ne3 Be6 15. Nxd5 Bxd5 {1-0 (23) Berenyi,T (2070)-Palinkas,E Hungary 1994}) 12... Be6 {[%emt 0:04:30]} 13. Be2 {[%emt 0:04:30]} Rfd8 {[%emt 0:03:30]} 14. g3 {[%emt 0:18:30]} Rd7 {[%emt 0:08:30]} 15. O-O {[%emt 0:00:30]} Rad8 {[%emt 0:00:30]} 16. Nc4 {[%emt 0:03:30]} b5 {[%emt 0:16:30]} 17. Ne3 {[%emt 0:03:30]} Nb6 {[%emt 0:01:30]} 18. b3 {[%emt 0:07:30]} e4 {[%emt 0:11:30]} 19. a4 {[%emt 0:06:30]} bxa4 {[%emt 0:02:30]} 20. bxa4 {[%emt 0:00:30]} a5 {[%emt 0:00:30]} 21. Ba3 {[%emt 0:06:30]} Ne5 {[%emt 0:04:30]} 22. Bc5 {[%emt 0:02:30]} Nbc4 {[%emt 0:00:30]} 23. Nxc4 {[%emt 0:00:30]} Bxc4 {[%emt 0:00:00]} 24. Bxc4 {[%emt 0:00:30]} Nxc4 {[%emt 0:00:00]} 25. Rfb1 {[%emt 0:10:39]} h6 {[%emt 0:07:30]} 26. Rb5 {[%emt 0:01:02]} Rd1+ {[%emt 0:01:30]} 27. Rxd1 {[%emt 0:00:30]} Rxd1+ {[%emt 0:00:30]} 28. Kg2 {[%emt 0:00:13]} Ra1 {[%emt 0:01:30]} 29. Rb8+ {[%emt 0:01:27]} Kh7 {[%emt 0:00:30]} 30. Re8 {[%emt 0:00:04]} f5 {[%emt 0:00:30]} 31. Bd4 {[%emt 0:00:52]} Rxa4 {[%emt 0:04:30]} 32. Re7 {[%emt 0:00:30]} Kg8 {[%emt 0:00:30]} 33. Rxg7+ {[%emt 0:00:30]} Kf8 {[%emt 0:00:00]} 34. Rg6 {[%emt 0:00:12]} Ra2 {[%emt 0:11:46]} 35. Kh3 {[%emt 0:01:33]} Ke7 {[%emt 0:03:02]} 36. Rxh6 {[%emt 0:01:40]} a4 {[%emt 0:00:23]} 37. Rc6 {[%emt 0:05:02]} Nd2 {[%emt 0:01:58]} 38. Rc5 {[%emt 0:02:10]} Nb3 {[%emt 0:01:51]} 39. Rxf5 {[%emt 0:00:28]} a3 {[%emt 0:00:19]} 40. Bh8 {[%emt 0:00:00]} Rd2 {[%emt 0:00:00]} 41. c4 $11 {[%emt 0:18:43]} a2 {[%emt 0:15:11]} 42. Re5+ {[%emt 0:00:48]} Kf7 {[%emt 0:01:30]} 43. Rxe4 {[%emt 0:00:07]} a1=Q {[%emt 0:00:30]} 44. Bxa1 {[%emt 0:00:30]} Nxa1 {[%emt 0:00:00]} 45. f4 {[%emt 0:01:10]} Nb3 {[%emt 0:00:00]} 46. g4 {[%emt 0:00:24]} Nc5 {[%emt 0:00:30]} 47. Re5 {[%emt 0:00:36]} Ne6 {[%emt 0:00:30]} 48. Re4 {[%emt 0:05:04]} Nc5 {[%emt 0:00:30]} 49. Re5 {[%emt 0:00:03]} Ne6 {[%emt 0:00:00]} 50. Kg3 {[%emt 0:00:27]} Rd3+ {[%emt 0:01:00]} 51. Kf2 {[%emt 0:00:18]} Rd2+ {[%emt 0:03:30]} 52. Kg3 {[%emt 0:01:26]} Rd3+ {[%emt 0:00:30]} 53. Kh4 {[%emt 0:02:04]} Kf6 {[%emt 0:09:54]} 54. g5+ {[%emt 0:00:15]} Kf7 {[%emt 0:00:10]} 55. Kg4 {[%emt 0:00:33]} Rd4 {[%emt 0:00:43]} 56. Rf5+ {[%emt 0:00:37]} Kg8 {[%emt 0:00:57]} 57. Rf6 {[%emt 0:02:55]} Nc5 {[%emt 0:00:52]} 58. h4 {[%emt 0:00:16]} Nd7 {[%emt 0:00:36]} 59. Rf5 {[%emt 0:00:51]} Rxc4 {[%emt 0:00:30]} 60. Rd5 {[%emt 0:00:03]} Nf8 {[%emt 0:00:11]} 61. h5 {[%emt 0:01:25]} Ne6 {[%emt 0:00:24]} 62. Rf5 {[%emt 0:04:09]} Rc1 {[%emt 0:00:22]} 63. Rf6 {[%emt 0:01:12]} Ng7 {[%emt 0:00:50]} 64. h6 {[%emt 0:00:58]} Rg1+ {[%emt 0:00:30]} 65. Kf3 {[%emt 0:00:00]} Nh5 {[%emt 0:00:00]} 66. h7+ {[%emt 0:00:04]} Kh8 {[%emt 0:00:40]} 67. Rh6 {[%emt 0:03:47]} Ng7 {[%emt 0:00:33]} 68. g6 {[%emt 0:00:48]} Nf5 {[%emt 0:00:35]} 69. Rh5 {[%emt 0:00:08]} Ng7 {[%emt 0:00:32]} 70. Rh6 {[%emt 0:00:51]} Nf5 {[%emt 0:00:06]} 71. Rh5 {[%emt 0:00:29]} Ng7 {[%emt 0:00:26]} 72. Rg5 {[%emt 0:00:21]} Rxg5 {[%emt 0:01:12]} 73. fxg5 {[%emt 0:00:30]} Ne6 {[%emt 0:00:00]} 74. Kg4 {[%emt 0:00:00]} Kg7 {[%emt 0:00:25]} 75. Kf5 {[%emt 0:00:05]} Nf8 {[%emt 0:00:00]} 76. h8=Q+ {[%emt 0:00:20]} Kxh8 {[%emt 0:00:13]} 77. Kf6 {[%emt 0:00:04]} Kg8 {[%emt 0:00:25]} 78. g7 {[%emt 0:00:30]} Nd7+ {[%emt 0:00:30]} 79. Kg6 {[%emt 0:00:00]} Ne5+ {[%emt 0:00:00]} 80. Kf6 {[%emt 0:00:11]} Nd7+ {[%emt 0:00:00]} 1/2-1/2

[Event "World Junior U20 Open 2018"]
[Site "Gebze"]
[Date "2018.09.07"]
[Round "3.75"]
[White "Zhu, Yi"]
[Black "Lin, Peisen"]
[Result "0-1"]
[ECO "D02"]
[WhiteElo "2335"]
[BlackElo "2034"]
[Annotator "NA"]
[PlyCount "36"]
[EventDate "2018.09.05"]
[EventType "swiss"]
[EventCountry "TUR"]
[SourceTitle "playchess.com"]
[Source "ChessBase"]
[SourceQuality "1"]
[TimeControl "40/5400+30:1800+30"]

1. Nc3 {[%emt 0:01:30]} d5 {[%emt 0:00:30]} 2. Nf3 {[%emt 0:02:30]} Nf6 {[%emt 0:00:30]} 3. d4 {[%emt 0:01:30]} Bf5 {[%emt 0:01:30]} 4. Bf4 {[%emt 0:02:30]} e6 {[%emt 0:02:30]} 5. e3 {[%emt 0:02:30]} c5 {[%emt 0:02:30]} 6. Bd3 {[%emt 0:03:30]} Bxd3 {[%emt 0:07:30]} 7. Qxd3 {[%emt 0:00:30]} cxd4 {[%emt 0:03:30]} 8. exd4 {[%emt 0:00:30]} Nc6 {[%emt 0:00:00]} 9. Ne5 {[%emt 0:01:30]} Be7 {[%emt 0:05:00]} 10. O-O-O {[%emt 0:03:30]} O-O {[%emt 0:01:30]} 11. h4 {[%emt 0:02:30]} Qa5 {[%emt 0:00:30]} 12. Kb1 {[%emt 0:02:30]} (12. Nxc6 $11 bxc6 13. h5) 12... Rfc8 {[%emt 0:01:30]} 13. Qf3 {[%emt 0:03:30]} Nb4 {[%emt 0:02:30]} 14. a3 {[%emt 0:00:30]} Nc6 {[%emt 0:00:30]} 15. Rd3 $17 {[%emt 0:06:30]} (15. Bg5 $11) 15... b5 {[%emt 0:01:30]} 16. g4 {[%emt 0:06:30]} b4 {[%emt 0:03:30]} 17. axb4 {[%emt 0:07:30]} Nxb4 {[%emt 0:01:30]} 18. Re3 {[%emt 0:05:30]} Ne4 {[%emt 0:25:30]} 0-1

[Event "World Junior U20 Open 2018"]
[Site "Gebze"]
[Date "2018.09.07"]
[Round "3.76"]
[White "Zlatin, Alexander"]
[Black "Rajic, Ivan"]
[Result "1-0"]
[ECO "B20"]
[WhiteElo "2312"]
[BlackElo "2021"]
[Annotator "ChessBase"]
[PlyCount "123"]
[EventDate "2018.09.05"]
[EventType "swiss"]
[EventCountry "TUR"]
[SourceTitle "playchess.com"]
[Source "ChessBase"]
[SourceQuality "1"]
[TimeControl "40/5400+30:1800+30"]

1. e4 {[%emt 0:00:30]} c5 {[%emt 0:00:30]} 2. a3 {[%emt 0:00:00]} e6 {[%emt 0:02:30]} 3. b4 {[%emt 0:01:00]} cxb4 {[%emt 0:09:30]} 4. axb4 {[%emt 0:00:30]} Bxb4 {[%emt 0:00:30]} 5. Bb2 {[%emt 0:00:00]} Nf6 {[%emt 0:00:30]} 6. e5 {[%emt 0:00:00]} Nd5 {[%emt 0:01:30]} 7. c4 {[%emt 0:01:30]} Ne7 {[%emt 0:05:30]} 8. Qg4 {[%emt 0:04:30]} Nf5 {[%emt 0:07:30]} 9. Bd3 {[%emt 0:02:30]} O-O {[%emt 0:02:30]} 10. Nf3 {[%emt 0:04:30]} Nc6 {[%emt 0:04:30]} 11. O-O {[%emt 0:02:30]} Be7 {[%emt 0:09:30]} 12. Qe4 {[%emt 0:09:30]} Nb4 {[%emt 0:05:30]} 13. Nc3 {[%emt 0:09:30]} f6 {[%emt 0:04:30]} 14. Bb1 {[%emt 0:03:30]} fxe5 {[%emt 0:05:30]} 15. Nxe5 {[%emt 0:00:30]} d6 {[%emt 0:05:30]} 16. Nf3 {[%emt 0:01:30]} Kh8 {[%emt 0:03:30]} 17. Qg4 {[%emt 0:07:30]} Bf6 {[%emt 0:01:30]} 18. Ba3 {[%emt 0:04:30]} Nc6 {[%emt 0:01:30]} 19. Qe4 {[%emt 0:04:30]} g6 {[%emt 0:01:30]} 20. Rd1 {[%emt 0:00:30]} Ncd4 {[%emt 0:02:30]} 21. Ra2 {[%emt 0:05:30]} Bd7 {[%emt 0:02:30]} 22. Nxd4 {[%emt 0:00:30]} Nxd4 {[%emt 0:05:49]} 23. Bxd6 {[%emt 0:02:30]} Bc6 {[%emt 0:03:01]} 24. Qf4 {[%emt 0:00:30]} Rf7 {[%emt 0:01:06]} 25. Re1 {[%emt 0:00:30]} Kg8 {[%emt 0:00:38]} 26. Nd1 {[%emt 0:04:30]} Bg7 {[%emt 0:04:29]} 27. Qg3 {[%emt 0:00:30]} Nf5 {[%emt 0:02:25]} 28. Bxf5 {[%emt 0:00:30]} exf5 {[%emt 0:00:45]} 29. Ra3 {[%emt 0:02:30]} Qd7 {[%emt 0:02:46]} 30. Bf4 {[%emt 0:02:30]} Re8 {[%emt 0:01:02]} 31. Rxe8+ {[%emt 0:01:30]} Qxe8 {[%emt 0:00:35]} 32. Ne3 {[%emt 0:00:00]} a6 {[%emt 0:00:34]} 33. h4 {[%emt 0:00:00]} Qe7 {[%emt 0:00:53]} 34. Rd3 {[%emt 0:01:30]} Be4 {[%emt 0:02:58]} 35. Nd5 {[%emt 0:02:30]} Bxd5 {[%emt 0:01:55]} 36. Rxd5 {[%emt 0:00:00]} Bf6 {[%emt 0:00:00]} 37. Bg5 {[%emt 0:01:00]} Bxg5 {[%emt 0:00:23]} 38. hxg5 {[%emt 0:00:30]} f4 {[%emt 0:00:37]} 39. Qd3 {[%emt 0:01:30]} f3 {[%emt 0:00:23]} 40. Rd8+ {[%emt 0:00:00]} Rf8 {[%emt 0:00:00]} 41. Qd5+ {[%emt 0:01:00]} Qf7 {[%emt 0:02:41]} 42. Qxf7+ {[%emt 0:04:30]} Kxf7 {[%emt 0:00:30]} 43. Rd7+ {[%emt 0:00:00]} Ke6 {[%emt 0:03:30]} 44. Rxb7 {[%emt 0:00:00]} Rd8 {[%emt 0:00:30]} 45. gxf3 {[%emt 0:03:30]} Rxd2 {[%emt 0:00:30]} 46. Rxh7 {[%emt 0:01:30]} Rc2 {[%emt 0:02:30]} 47. Rc7 {[%emt 0:00:30]} a5 {[%emt 0:00:30]} 48. Ra7 {[%emt 0:01:30]} Rxc4 {[%emt 0:01:30]} 49. Rxa5 {[%emt 0:00:30]} Rf4 {[%emt 0:00:30]} 50. Kg2 {[%emt 0:00:00]} Rf5 {[%emt 0:00:30]} 51. Rxf5 {[%emt 0:01:00]} Kxf5 {[%emt 0:00:30]} 52. Kg3 {[%emt 0:00:00]} Kxg5 {[%emt 0:00:00]} 53. f4+ {[%emt 0:00:00]} Kf5 {[%emt 0:00:00]} 54. Kf3 {[%emt 0:00:00]} Ke6 {[%emt 0:08:50]} 55. Kg4 {[%emt 0:00:00]} Kf7 {[%emt 0:01:13]} 56. Kg5 {[%emt 0:00:00]} Kg7 {[%emt 0:01:12]} 57. f5 {[%emt 0:00:00]} gxf5 {[%emt 0:00:00]} 58. Kxf5 {[%emt 0:00:30]} Kf7 {[%emt 0:00:10]} 59. f4 {[%emt 0:00:00]} Kf8 {[%emt 0:00:21]} 60. Kf6 {[%emt 0:00:00]} Ke8 {[%emt 0:00:11]} 61. Kg7 {[%emt 0:00:30]} Ke7 {[%emt 0:00:30]} 62. f5 {[%emt 0:00:00]} 1-0